[Event "Early-Titled-Tuesday-Blitz-September-26-2023"]
[Site "Chess.com"]
[Date "2023.09.26"]
[Round "2"]
[White "hakanazeri2"]
[Black "moro182"]
[Result "0-1"]
[WhiteElo "2587"]
[BlackElo "2814"]
[TimeControl "180+1"]
[EndTime "8:19:06 PDT"]
[Termination "moro182 won by resignation"]

1. c4 {[%clk 0:02:55.9]} 1... g6 {[%clk 0:03:00.9]} 2. d4 {[%clk 0:02:55.3]}
2... Bg7 {[%clk 0:03:01.8]} 3. Nc3 {[%clk 0:02:56.1]} 3... d6 {[%clk 0:03:01.2]}
4. e4 {[%clk 0:02:56.3]} 4... c5 {[%clk 0:03:01.5]} 5. dxc5 {[%clk 0:02:52.9]}
5... Bxc3+ {[%clk 0:03:02.4]} 6. bxc3 {[%clk 0:02:53]} 6... dxc5 {[%clk
0:03:03.3]} 7. Qxd8+ {[%clk 0:02:52.4]} 7... Kxd8 {[%clk 0:03:04.2]} 8. Be3
{[%clk 0:02:52.4]} 8... b6 {[%clk 0:03:04]} 9. e5 {[%clk 0:02:49]} 9... Bb7
{[%clk 0:03:02.4]} 10. Nh3 {[%clk 0:02:44.4]} 10... Nc6 {[%clk 0:03:01]} 11. e6
{[%clk 0:02:36.5]} 11... f6 {[%clk 0:03:00.6]} 12. O-O-O+ {[%clk 0:02:32.9]}
12... Ke8 {[%clk 0:02:57.3]} 13. Nf4 {[%clk 0:02:23.5]} 13... Rd8 {[%clk
0:02:54.5]} 14. Nd5 {[%clk 0:02:21.7]} 14... Rd6 {[%clk 0:02:39.3]} 15. Bf4
{[%clk 0:01:43.7]} 15... Ne5 {[%clk 0:02:25.6]} 16. Be2 {[%clk 0:01:43.6]} 16...
Bxd5 {[%clk 0:02:14.2]} 17. cxd5 {[%clk 0:01:43]} 17... g5 {[%clk 0:02:13.9]}
18. Bxe5 {[%clk 0:01:28.7]} 18... fxe5 {[%clk 0:02:14.8]} 19. Bb5+ {[%clk
0:01:29.4]} 19... Kd8 {[%clk 0:02:09.2]} 20. Rhe1 {[%clk 0:01:29.6]} 20... Nf6
{[%clk 0:02:07.8]} 21. Rxe5 {[%clk 0:01:29.6]} 21... h6 {[%clk 0:02:08.3]} 22.
f3 {[%clk 0:01:23.3]} 22... Kc7 {[%clk 0:02:07.1]} 23. c4 {[%clk 0:01:22.2]}
23... Rdd8 {[%clk 0:02:05.5]} 24. Kc2 {[%clk 0:01:13.6]} 24... a6 {[%clk
0:01:52.5]} 25. Bc6 {[%clk 0:01:08.8]} 25... Kd6 {[%clk 0:01:49.4]} 26. Re3
{[%clk 0:01:07.5]} 26... g4 {[%clk 0:01:46.8]} 27. Ra3 {[%clk 0:01:05.8]} 27...
gxf3 {[%clk 0:01:42.4]} 28. gxf3 {[%clk 0:01:06.7]} 28... a5 {[%clk 0:01:40.4]}
29. Rb3 {[%clk 0:01:06.7]} 29... Kc7 {[%clk 0:01:38.2]} 30. Rdb1 {[%clk
0:01:02.9]} 30... Rb8 {[%clk 0:01:34.6]} 31. Ba4 {[%clk 0:00:44.8]} 31... Rhg8
{[%clk 0:01:29.4]} 32. Kd3 {[%clk 0:00:45.4]} 32... Rg5 {[%clk 0:01:05.4]} 33.
Ke3 {[%clk 0:00:39.1]} 33... Re5+ {[%clk 0:01:02.9]} 34. Kf2 {[%clk 0:00:37.1]}
34... Rh5 {[%clk 0:01:01.9]} 35. Kg3 {[%clk 0:00:28.7]} 35... Rg8+ {[%clk
0:01:01.1]} 36. Kf4 {[%clk 0:00:29.1]} 36... Rh4+ {[%clk 0:01:00.3]} 37. Ke3
{[%clk 0:00:29.2]} 37... Rxc4 {[%clk 0:00:56.9]} 38. Bc6 {[%clk 0:00:25.8]}
38... Rb4 {[%clk 0:00:55.4]} 39. Rxb4 {[%clk 0:00:22.8]} 39... axb4 {[%clk
0:00:56.3]} 40. a3 {[%clk 0:00:23]} 40... bxa3 {[%clk 0:00:52.1]} 41. Ra1 {[%clk
0:00:23.2]} 41... Kd6 {[%clk 0:00:46.9]} 42. Rxa3 {[%clk 0:00:19.8]} 42... Nxd5+
{[%clk 0:00:46.6]} 43. Bxd5 {[%clk 0:00:20.5]} 43... Kxd5 {[%clk 0:00:47.5]} 44.
Ra6 {[%clk 0:00:20.8]} 44... Rb8 {[%clk 0:00:46.4]} 45. Kd3 {[%clk 0:00:21.1]}
45... b5 {[%clk 0:00:42.9]} 46. f4 {[%clk 0:00:17.4]} 46... c4+ {[%clk
0:00:35.9]} 47. Kc2 {[%clk 0:00:17.6]} 47... b4 {[%clk 0:00:36.1]} 48. f5 {[%clk
0:00:16.9]} 48... b3+ {[%clk 0:00:35.7]} 49. Kb1 {[%clk 0:00:14.1]} 49... c3
{[%clk 0:00:34.4]} 50. Ra5+ {[%clk 0:00:14]} 50... Ke4 {[%clk 0:00:28]} 51. Ra7
{[%clk 0:00:13.6]} 51... Rd8 {[%clk 0:00:20]} 52. Rd7 {[%clk 0:00:12.1]} 52...
Rc8 {[%clk 0:00:19.6]} 53. Rb7 {[%clk 0:00:10.4]} 53... Kxf5 {[%clk 0:00:16.3]}
54. Rxb3 {[%clk 0:00:10.3]} 54... c2+ {[%clk 0:00:16.2]} 55. Kc1 {[%clk
0:00:10.5]} 55... Kxe6 {[%clk 0:00:17.1]} 56. Re3+ {[%clk 0:00:10.5]} 56... Kf6
{[%clk 0:00:15.9]} 57. Rf3+ {[%clk 0:00:10.9]} 57... Kg5 {[%clk 0:00:16.1]} 58.
Re3 {[%clk 0:00:11.3]} 58... Rc7 {[%clk 0:00:16.3]} 59. Re6 {[%clk 0:00:11.6]}
59... h5 {[%clk 0:00:16]} 60. Re5+ {[%clk 0:00:12]} 60... Kg4 {[%clk 0:00:15.9]}
61. Re4+ {[%clk 0:00:11.4]} 61... Kh3 {[%clk 0:00:15.7]} 62. Re5 {[%clk
0:00:11.9]} 62... h4 {[%clk 0:00:15.6]} 63. Re4 {[%clk 0:00:12.4]} 63... e5
{[%clk 0:00:13.6]} 64. Rxe5 {[%clk 0:00:10.7]} 64... Kxh2 {[%clk 0:00:13.6]} 65.
Re2+ {[%clk 0:00:11.3]} 65... Kg3 {[%clk 0:00:13.7]} 66. Re3+ {[%clk 0:00:12]}
66... Kf4 {[%clk 0:00:11.8]} 67. Ra3 {[%clk 0:00:10.4]} 67... Rc4 {[%clk
0:00:11.8]} 68. Ra8 {[%clk 0:00:08.8]} 68... h3 {[%clk 0:00:11.8]} 69. Rh8
{[%clk 0:00:09]} 69... Kg3 {[%clk 0:00:11.7]} 70. Rg8+ {[%clk 0:00:09.6]} 70...
Rg4 {[%clk 0:00:11.3]} 71. Rg7 {[%clk 0:00:10.4]} 0-1

[Event "Early-Titled-Tuesday-Blitz-September-26-2023"]
[Site "Chess.com"]
[Date "2023.09.26"]
[Round "2"]
[White "Kopytkin"]
[Black "TheRigos"]
[Result "1/2-1/2"]
[WhiteElo "2356"]
[BlackElo "2591"]
[TimeControl "180+1"]
[EndTime "8:19:13 PDT"]
[Termination "Game drawn - insufficient material"]

1. d4 {[%clk 0:02:57.9]} 1... d5 {[%clk 0:02:58.8]} 2. Bg5 {[%clk 0:02:55.8]}
2... f6 {[%clk 0:02:56.4]} 3. Bf4 {[%clk 0:02:55]} 3... c5 {[%clk 0:02:55.4]} 4.
e3 {[%clk 0:02:54.9]} 4... Nc6 {[%clk 0:02:49.7]} 5. Nf3 {[%clk 0:02:54.5]} 5...
cxd4 {[%clk 0:02:42]} 6. exd4 {[%clk 0:02:54.1]} 6... g5 {[%clk 0:02:42.7]} 7.
Be3 {[%clk 0:02:41.5]} 7... Nh6 {[%clk 0:02:42.7]} 8. c4 {[%clk 0:02:39.7]} 8...
e6 {[%clk 0:02:20.5]} 9. Nc3 {[%clk 0:02:38.9]} 9... Bb4 {[%clk 0:02:15.1]} 10.
h4 {[%clk 0:02:25.3]} 10... Nf5 {[%clk 0:02:02.6]} 11. hxg5 {[%clk 0:02:23.5]}
11... Nxe3 {[%clk 0:02:00.7]} 12. fxe3 {[%clk 0:02:24.4]} 12... fxg5 {[%clk
0:01:54.7]} 13. Qb3 {[%clk 0:02:20]} 13... g4 {[%clk 0:01:42.5]} 14. Ne5 {[%clk
0:02:20]} 14... Qg5 {[%clk 0:01:38.9]} 15. Be2 {[%clk 0:02:02.3]} 15... Qxe3
{[%clk 0:01:34.7]} 16. Nxc6 {[%clk 0:01:58.6]} 16... Bxc3+ {[%clk 0:01:33.3]}
17. Qxc3 {[%clk 0:01:58.4]} 17... Qxc3+ {[%clk 0:01:31.9]} 18. bxc3 {[%clk
0:01:59.3]} 18... bxc6 {[%clk 0:01:31.7]} 19. Bxg4 {[%clk 0:01:59.5]} 19... Rb8
{[%clk 0:01:24.3]} 20. Bh5+ {[%clk 0:01:51.3]} 20... Ke7 {[%clk 0:01:23.2]} 21.
O-O {[%clk 0:01:51.4]} 21... dxc4 {[%clk 0:01:19.1]} 22. Rf7+ {[%clk 0:01:49.7]}
22... Kd6 {[%clk 0:01:19.2]} 23. Rxa7 {[%clk 0:01:45.4]} 23... Rb2 {[%clk
0:01:14]} 24. Rf1 {[%clk 0:01:37.8]} 24... Rg8 {[%clk 0:01:11.4]} 25. Rf2 {[%clk
0:01:35.8]} 25... Rb1+ {[%clk 0:01:06.5]} 26. Kh2 {[%clk 0:01:35.6]} 26... Rb7
{[%clk 0:00:46.4]} 27. Rxb7 {[%clk 0:01:34.8]} 27... Bxb7 {[%clk 0:00:47.3]} 28.
Rf7 {[%clk 0:01:34.9]} 28... Ba8 {[%clk 0:00:47.5]} 29. Rxh7 {[%clk 0:01:27.8]}
29... c5 {[%clk 0:00:47.7]} 30. dxc5+ {[%clk 0:01:24.5]} 30... Kxc5 {[%clk
0:00:45]} 31. Bf3 {[%clk 0:01:22.2]} 31... Bxf3 {[%clk 0:00:45.4]} 32. gxf3
{[%clk 0:01:23.1]} 32... Ra8 {[%clk 0:00:45.2]} 33. Rc7+ {[%clk 0:01:16.8]}
33... Kd5 {[%clk 0:00:44.7]} 34. Rd7+ {[%clk 0:01:03]} 34... Kc6 {[%clk
0:00:41.8]} 35. Rd4 {[%clk 0:01:02.3]} 35... Rxa2+ {[%clk 0:00:41]} 36. Kg3
{[%clk 0:01:03.2]} 36... Kc5 {[%clk 0:00:39.9]} 37. Re4 {[%clk 0:01:00.5]} 37...
Kd5 {[%clk 0:00:39.5]} 38. Rd4+ {[%clk 0:00:58.1]} 38... Kc5 {[%clk 0:00:39.3]}
39. Re4 {[%clk 0:00:58.5]} 39... Rc2 {[%clk 0:00:36.8]} 40. Re5+ {[%clk
0:00:49.3]} 40... Kd6 {[%clk 0:00:35.3]} 41. Re3 {[%clk 0:00:50]} 41... Kd5
{[%clk 0:00:32.2]} 42. Kf4 {[%clk 0:00:48.6]} 42... Rc1 {[%clk 0:00:21]} 43.
Re5+ {[%clk 0:00:48.5]} 43... Kd6 {[%clk 0:00:21.4]} 44. Re3 {[%clk 0:00:48.8]}
44... Rh1 {[%clk 0:00:19]} 45. Ke4 {[%clk 0:00:48.4]} 45... Rh4+ {[%clk
0:00:17.5]} 46. f4 {[%clk 0:00:47.3]} 46... e5 {[%clk 0:00:18.4]} 47. Rf3 {[%clk
0:00:47.6]} 47... Ke6 {[%clk 0:00:09.4]} 48. Ke3 {[%clk 0:00:47.9]} 48... Kd5
{[%clk 0:00:05]} 49. Rf2 {[%clk 0:00:17.3]} 49... Rh3+ {[%clk 0:00:04.9]} 50.
Rf3 {[%clk 0:00:17.6]} 50... Rh4 {[%clk 0:00:05]} 51. Rf2 {[%clk 0:00:17.9]}
51... exf4+ {[%clk 0:00:03.8]} 52. Rxf4 {[%clk 0:00:17.8]} 52... Rh3+ {[%clk
0:00:04.7]} 53. Rf3 {[%clk 0:00:18.2]} 53... Rh5 {[%clk 0:00:04.6]} 54. Rg3
{[%clk 0:00:15.5]} 54... Re5+ {[%clk 0:00:04.7]} 55. Kf3 {[%clk 0:00:15.9]}
55... Rh5 {[%clk 0:00:05.1]} 56. Ke3 {[%clk 0:00:13.2]} 56... Rf5 {[%clk
0:00:05.5]} 57. Rg4 {[%clk 0:00:11.4]} 57... Re5+ {[%clk 0:00:05.8]} 58. Kf3
{[%clk 0:00:11.7]} 58... Rh5 {[%clk 0:00:06.7]} 59. Rd4+ {[%clk 0:00:11.6]}
59... Kc5 {[%clk 0:00:07.2]} 60. Rf4 {[%clk 0:00:12]} 60... Rh3+ {[%clk
0:00:07.2]} 61. Ke2 {[%clk 0:00:12]} 61... Rxc3 {[%clk 0:00:08.1]} 62. Kd2
{[%clk 0:00:12.2]} 62... Kb4 {[%clk 0:00:07.4]} 63. Rf8 {[%clk 0:00:09.9]} 63...
Rd3+ {[%clk 0:00:07.9]} 64. Kc2 {[%clk 0:00:09.7]} 64... Rd6 {[%clk 0:00:08.3]}
65. Rb8+ {[%clk 0:00:09.8]} 65... Kc5 {[%clk 0:00:09.2]} 66. Rc8+ {[%clk
0:00:10.2]} 66... Kd4 {[%clk 0:00:09.7]} 67. Rh8 {[%clk 0:00:09.6]} 67... Rg6
{[%clk 0:00:09.1]} 68. Rh4+ {[%clk 0:00:09.7]} 68... Kc5 {[%clk 0:00:09.2]} 69.
Rh8 {[%clk 0:00:07.2]} 69... Rg2+ {[%clk 0:00:08.3]} 70. Kc3 {[%clk 0:00:06.9]}
70... Rg3+ {[%clk 0:00:08.9]} 71. Kc2 {[%clk 0:00:07.4]} 71... Kd4 {[%clk
0:00:09.5]} 72. Rd8+ {[%clk 0:00:07.3]} 72... Kc5 {[%clk 0:00:10]} 73. Rc8+
{[%clk 0:00:07.7]} 73... Kb4 {[%clk 0:00:10.7]} 74. Rb8+ {[%clk 0:00:08.1]}
74... Ka4 {[%clk 0:00:11.2]} 75. Ra8+ {[%clk 0:00:08.2]} 75... Kb5 {[%clk
0:00:11.9]} 76. Rb8+ {[%clk 0:00:08.6]} 76... Kc5 {[%clk 0:00:12.4]} 77. Rc8+
{[%clk 0:00:08.9]} 77... Kd5 {[%clk 0:00:13]} 78. Rd8+ {[%clk 0:00:09]} 78...
Ke6 {[%clk 0:00:13.6]} 79. Rd4 {[%clk 0:00:07.8]} 79... c3 {[%clk 0:00:12.7]}
80. Rd3 {[%clk 0:00:08]} 80... Rxd3 {[%clk 0:00:12.9]} 81. Kxd3 {[%clk
0:00:08.4]} 81... c2 {[%clk 0:00:13.8]} 82. Kxc2 {[%clk 0:00:08.6]} 1/2-1/2

[Event "Early-Titled-Tuesday-Blitz-September-26-2023"]
[Site "Chess.com"]
[Date "2023.09.26"]
[Round "2"]
[White "Igrok3069"]
[Black "Kotofeyca"]
[Result "1-0"]
[WhiteElo "2867"]
[BlackElo "2399"]
[TimeControl "180+1"]
[EndTime "8:19:22 PDT"]
[Termination "Igrok3069 won on time"]

1. d4 {[%clk 0:03:00.8]} 1... d5 {[%clk 0:02:58.2]} 2. c4 {[%clk 0:03:00.1]}
2... c6 {[%clk 0:02:59.1]} 3. Nc3 {[%clk 0:03:01]} 3... Nf6 {[%clk 0:02:58.4]}
4. e3 {[%clk 0:03:01.8]} 4... a6 {[%clk 0:02:57.8]} 5. Bd3 {[%clk 0:03:00.1]}
5... Bg4 {[%clk 0:02:57.6]} 6. Qc2 {[%clk 0:02:58.8]} 6... e6 {[%clk 0:02:56.6]}
7. Nge2 {[%clk 0:02:57.4]} 7... Bxe2 {[%clk 0:02:51.3]} 8. Qxe2 {[%clk
0:02:56.5]} 8... Nbd7 {[%clk 0:02:51.5]} 9. O-O {[%clk 0:02:54.7]} 9... Be7
{[%clk 0:02:47.2]} 10. b3 {[%clk 0:02:54.3]} 10... O-O {[%clk 0:02:46.7]} 11.
Bb2 {[%clk 0:02:55]} 11... b5 {[%clk 0:02:43.9]} 12. Rac1 {[%clk 0:02:52.5]}
12... Rb8 {[%clk 0:02:43.4]} 13. cxd5 {[%clk 0:02:27.7]} 13... cxd5 {[%clk
0:02:40.7]} 14. Rc2 {[%clk 0:02:28.2]} 14... Bb4 {[%clk 0:02:34.9]} 15. a3
{[%clk 0:02:25.8]} 15... Bd6 {[%clk 0:02:34.3]} 16. a4 {[%clk 0:02:19.7]} 16...
bxa4 {[%clk 0:02:27.5]} 17. bxa4 {[%clk 0:02:19.3]} 17... a5 {[%clk 0:02:26.6]}
18. Bb5 {[%clk 0:02:02.5]} 18... Bb4 {[%clk 0:02:21.6]} 19. Rfc1 {[%clk
0:01:59.1]} 19... Nb6 {[%clk 0:02:16.3]} 20. Na2 {[%clk 0:01:58.1]} 20... Qe7
{[%clk 0:01:52.9]} 21. Nxb4 {[%clk 0:01:51.7]} 21... Qxb4 {[%clk 0:01:53.8]} 22.
Bc3 {[%clk 0:01:50.7]} 22... Qe7 {[%clk 0:01:44.5]} 23. Bxa5 {[%clk 0:01:48.9]}
23... Ne4 {[%clk 0:01:42]} 24. Rc6 {[%clk 0:01:40.2]} 24... Qa7 {[%clk
0:01:32.3]} 25. Bb4 {[%clk 0:01:34.3]} 25... Rfd8 {[%clk 0:01:28.4]} 26. f3
{[%clk 0:01:29.8]} 26... Nf6 {[%clk 0:01:12.9]} 27. Rc7 {[%clk 0:01:20.5]} 27...
Rb7 {[%clk 0:01:12.8]} 28. Qc2 {[%clk 0:01:14.4]} 28... Nc4 {[%clk 0:01:09.9]}
29. Bc5 {[%clk 0:01:06.1]} 29... Qb8 {[%clk 0:00:48]} 30. Rxb7 {[%clk
0:01:05.9]} 30... Qxb7 {[%clk 0:00:48.9]} 31. Bxc4 {[%clk 0:01:03.4]} 31... dxc4
{[%clk 0:00:49.8]} 32. Qxc4 {[%clk 0:01:03.5]} 32... Nd5 {[%clk 0:00:50.7]} 33.
e4 {[%clk 0:00:55]} 33... Nf4 {[%clk 0:00:47.1]} 34. g3 {[%clk 0:00:49.6]} 34...
Ng6 {[%clk 0:00:35.3]} 35. Qb5 {[%clk 0:00:47.6]} 35... Qa8 {[%clk 0:00:31.7]}
36. a5 {[%clk 0:00:47]} 36... Rb8 {[%clk 0:00:28.4]} 37. Bb6 {[%clk 0:00:46.4]}
37... Ne7 {[%clk 0:00:27.1]} 38. Qc5 {[%clk 0:00:40]} 38... Rc8 {[%clk
0:00:20.1]} 39. Bc7 {[%clk 0:00:32.9]} 39... Ng6 {[%clk 0:00:11]} 40. Qc6 {[%clk
0:00:33]} 40... Qa7 {[%clk 0:00:09.3]} 41. Qb6 {[%clk 0:00:32.7]} 41... Qa8
{[%clk 0:00:08.4]} 42. a6 {[%clk 0:00:32.6]} 42... Nf8 {[%clk 0:00:06.4]} 43.
Qb7 {[%clk 0:00:28.5]} 43... Nd7 {[%clk 0:00:05.6]} 44. Qxa8 {[%clk 0:00:28]}
44... Rxa8 {[%clk 0:00:06.5]} 45. Bd6 {[%clk 0:00:23.9]} 45... g5 {[%clk
0:00:05.3]} 46. Rc7 {[%clk 0:00:22.1]} 46... Nb6 {[%clk 0:00:04.6]} 47. a7
{[%clk 0:00:16.6]} 47... Nc8 {[%clk 0:00:04.6]} 48. Bc5 {[%clk 0:00:16.1]} 48...
Kg7 {[%clk 0:00:02.9]} 49. Rb7 {[%clk 0:00:16.3]} 49... Kf6 {[%clk 0:00:02.5]}
50. Rb8 {[%clk 0:00:15.9]} 50... Rxa7 {[%clk 0:00:02.6]} 51. Bxa7 {[%clk
0:00:14.1]} 51... Nxa7 {[%clk 0:00:03.5]} 52. Rh8 {[%clk 0:00:12.4]} 52... Nc6
{[%clk 0:00:01.9]} 53. d5 {[%clk 0:00:11.7]} 53... exd5 {[%clk 0:00:02.8]} 54.
exd5 {[%clk 0:00:12.3]} 54... Nb4 {[%clk 0:00:03.5]} 55. d6 {[%clk 0:00:11.9]}
55... Ke6 {[%clk 0:00:04.4]} 56. Rxh7 {[%clk 0:00:11.9]} 56... Kxd6 {[%clk
0:00:04.8]} 57. Rxf7 {[%clk 0:00:11.7]} 57... Ke6 {[%clk 0:00:05.2]} 58. Rg7
{[%clk 0:00:11.7]} 58... Kf6 {[%clk 0:00:05.2]} 59. Rb7 {[%clk 0:00:12.4]} 59...
Nd3 {[%clk 0:00:05.7]} 60. Kg2 {[%clk 0:00:11.9]} 60... Ne5 {[%clk 0:00:06.6]}
61. h3 {[%clk 0:00:10.7]} 61... Nd3 {[%clk 0:00:06.4]} 62. Rb6+ {[%clk
0:00:10.6]} 62... Kf5 {[%clk 0:00:06.3]} 63. Rb5+ {[%clk 0:00:10.8]} 63... Kf6
{[%clk 0:00:06.4]} 64. Rd5 {[%clk 0:00:10.2]} 64... Nb4 {[%clk 0:00:06.2]} 65.
Rd4 {[%clk 0:00:10.3]} 65... Ke5 {[%clk 0:00:05.4]} 66. Rxb4 {[%clk 0:00:10.1]}
1-0

[Event "Early-Titled-Tuesday-Blitz-September-26-2023"]
[Site "Chess.com"]
[Date "2023.09.26"]
[Round "2"]
[White "ZuraTqebuchava"]
[Black "Rosh1610"]
[Result "0-1"]
[WhiteElo "2259"]
[BlackElo "2479"]
[TimeControl "180+1"]
[EndTime "8:19:29 PDT"]
[Termination "Rosh1610 won on time"]

1. e4 {[%clk 0:03:00.2]} 1... c5 {[%clk 0:02:48.5]} 2. Nf3 {[%clk 0:02:59.8]}
2... d6 {[%clk 0:02:48.5]} 3. Bb5+ {[%clk 0:03:00]} 3... Nd7 {[%clk 0:02:47.7]}
4. O-O {[%clk 0:02:59.4]} 4... Nf6 {[%clk 0:02:47.1]} 5. Re1 {[%clk 0:02:59.8]}
5... a6 {[%clk 0:02:45.4]} 6. Bf1 {[%clk 0:02:59]} 6... g6 {[%clk 0:02:45.3]} 7.
c3 {[%clk 0:02:58.9]} 7... Bg7 {[%clk 0:02:45]} 8. d4 {[%clk 0:02:59.5]} 8...
cxd4 {[%clk 0:02:44.5]} 9. cxd4 {[%clk 0:03:00.4]} 9... e5 {[%clk 0:02:44.5]}
10. dxe5 {[%clk 0:03:00]} 10... dxe5 {[%clk 0:02:43.2]} 11. Qd6 {[%clk
0:02:54.6]} 11... Qe7 {[%clk 0:02:37.6]} 12. Qxe7+ {[%clk 0:02:53.9]} 12... Kxe7
{[%clk 0:02:38.5]} 13. b3 {[%clk 0:02:54.6]} 13... Re8 {[%clk 0:02:36.8]} 14.
Ba3+ {[%clk 0:02:53.8]} 14... Kd8 {[%clk 0:02:35.4]} 15. Ng5 {[%clk 0:02:49.3]}
15... Nf8 {[%clk 0:02:26.1]} 16. Nxf7+ {[%clk 0:02:42.2]} 16... Kc7 {[%clk
0:02:25.3]} 17. Rc1+ {[%clk 0:02:22.6]} 17... Kb8 {[%clk 0:02:23.6]} 18. Bd6+
{[%clk 0:02:12.4]} 18... Ka7 {[%clk 0:02:23.4]} 19. Bxe5 {[%clk 0:02:06.4]}
19... Rxe5 {[%clk 0:01:49.4]} 20. Nxe5 {[%clk 0:02:05.5]} 20... Nxe4 {[%clk
0:01:48.1]} 21. f4 {[%clk 0:01:52.2]} 21... Nd7 {[%clk 0:01:45.1]} 22. Nc3
{[%clk 0:00:46.3]} 22... Nxc3 {[%clk 0:01:41.2]} 23. Rxc3 {[%clk 0:00:43.8]}
23... Nxe5 {[%clk 0:01:41.4]} 24. fxe5 {[%clk 0:00:41.9]} 24... Bxe5 {[%clk
0:01:42.3]} 25. Rac1 {[%clk 0:00:41.6]} 25... Bd4+ {[%clk 0:01:41.4]} 26. Kh1
{[%clk 0:00:40.8]} 26... Bxc3 {[%clk 0:01:40.6]} 27. Rxc3 {[%clk 0:00:41.7]}
27... Bf5 {[%clk 0:01:36.3]} 28. Be2 {[%clk 0:00:32.7]} 28... Re8 {[%clk
0:01:32.8]} 29. Bf1 {[%clk 0:00:26.2]} 29... Re1 {[%clk 0:01:32.1]} 30. Kg1
{[%clk 0:00:26.7]} 30... Ra1 {[%clk 0:01:29.6]} 31. a4 {[%clk 0:00:24.8]} 31...
Kb6 {[%clk 0:01:29.6]} 32. Kf2 {[%clk 0:00:24.3]} 32... Rb1 {[%clk 0:01:25.7]}
33. Bc4 {[%clk 0:00:21.9]} 33... Rb2+ {[%clk 0:01:25.1]} 34. Kg3 {[%clk
0:00:21.3]} 34... Be4 {[%clk 0:01:23.6]} 35. Kf4 {[%clk 0:00:16.6]} 35... Bxg2
{[%clk 0:01:18.3]} 36. h4 {[%clk 0:00:16.9]} 36... Bc6 {[%clk 0:01:10.4]} 37.
Re3 {[%clk 0:00:15.6]} 37... Rh2 {[%clk 0:00:58]} 38. Kg5 {[%clk 0:00:11.8]}
38... Kc5 {[%clk 0:00:38.2]} 39. Re5+ {[%clk 0:00:08.7]} 39... Kd4 {[%clk
0:00:36.8]} 40. Re7 {[%clk 0:00:08.4]} 40... h5 {[%clk 0:00:31.6]} 41. Bf7
{[%clk 0:00:05.9]} 41... Rg2+ {[%clk 0:00:30.5]} 42. Kh6 {[%clk 0:00:05.8]}
42... Rg4 {[%clk 0:00:25.8]} 43. Bxg6 {[%clk 0:00:05.4]} 43... Rxh4 {[%clk
0:00:26.1]} 44. Kg5 {[%clk 0:00:05.2]} 44... Rg4+ {[%clk 0:00:22.2]} 45. Kxh5
{[%clk 0:00:04.4]} 45... Rg1 {[%clk 0:00:22.8]} 46. Bf7 {[%clk 0:00:03.9]} 46...
Kc3 {[%clk 0:00:20.7]} 47. Kh6 {[%clk 0:00:03.8]} 47... Kb4 {[%clk 0:00:19.9]}
48. Re5 {[%clk 0:00:03.1]} 48... Rg3 {[%clk 0:00:18.7]} 49. Kh7 {[%clk
0:00:03.1]} 49... Rxb3 {[%clk 0:00:06.6]} 50. Bxb3 {[%clk 0:00:02.7]} 50... Kxb3
{[%clk 0:00:07.5]} 51. a5 {[%clk 0:00:03.5]} 51... Kb4 {[%clk 0:00:08]} 52. Kg7
{[%clk 0:00:03.8]} 52... Bb5 {[%clk 0:00:08.2]} 53. Kf6 {[%clk 0:00:04.3]} 53...
Kxa5 {[%clk 0:00:08.2]} 54. Ke7 {[%clk 0:00:05.2]} 54... Kb4 {[%clk 0:00:08.5]}
55. Kd6 {[%clk 0:00:05.9]} 55... a5 {[%clk 0:00:08.6]} 56. Re4+ {[%clk
0:00:06.5]} 56... Bc4 {[%clk 0:00:08.1]} 57. Kc7 {[%clk 0:00:05.9]} 57... b5
{[%clk 0:00:08.5]} 58. Kb6 {[%clk 0:00:06]} 58... a4 {[%clk 0:00:09]} 59. Re1
{[%clk 0:00:05.9]} 59... a3 {[%clk 0:00:09.2]} 60. Rb1+ {[%clk 0:00:06]} 60...
Bb3 {[%clk 0:00:08.7]} 61. Kc6 {[%clk 0:00:05.7]} 61... a2 {[%clk 0:00:07.7]}
62. Rg1 {[%clk 0:00:05.7]} 62... Bc4 {[%clk 0:00:07.3]} 63. Re1 {[%clk
0:00:04.5]} 63... Bd3 {[%clk 0:00:06.9]} 64. Rd1 {[%clk 0:00:04.3]} 64... Bb1
{[%clk 0:00:06.6]} 65. Rd4+ {[%clk 0:00:03.8]} 65... Kc3 {[%clk 0:00:06.4]} 66.
Rd8 {[%clk 0:00:03.2]} 66... a1=Q {[%clk 0:00:06.2]} 67. Kxb5 {[%clk 0:00:03.1]}
67... Bd3+ {[%clk 0:00:05.8]} 68. Kc5 {[%clk 0:00:03]} 68... Qa5+ {[%clk
0:00:05.7]} 69. Kd6 {[%clk 0:00:03]} 69... Qxd8+ {[%clk 0:00:06.6]} 0-1